Cogmind - Beta 9.2 @@@ ROGUE MODE // 2019.11.14 @ 22:22:06 Player: Finestep Result: Destroyed by S-10 Pest with Light Assault Rifle Performance ------------- Evolutions (1) 500 Regions Visited (3) 600 Robots Destroyed (11) 55 Value Destroyed (165) 165 Prototype IDs (1) 20 Alien Tech Used (0) 0 Bonus (0) 0 TOTAL SCORE: 1340 Bonus ------- None Cogmind --------- Core Integrity 0/400 Matter 300/300 Energy 99/100 System Corruption 0% Temperature Cool (0) Movement Core (50) Location -9/Mines Parts ------- > --- POWER (1) -------- (None) > --- PROPULSION (3) --- (None) > --- UTILITY (3) ------ (None) > --- WEAPON (2) ------- (None) > --- INVENTORY (4) ---- Ion Engine Reinforced Ion Engine Small Storage Unit Mini Grenade Launcher Peak State ------------ > --- POWER ------------ Ion Engine > --- PROPULSION ------- Light Treads Light Treads > --- UTILITY ---------- Small Storage Unit Small Storage Unit > --- WEAPON ----------- Light Assault Rifle Improved Assault Rifle > --- INVENTORY -------- Ion Engine EM Pulse Gun Assault Rifle Grenade Launcher Grenade Launcher [Rating: 9] Favorites ----------- Power Ion Engine Engine Ion Engine Propulsion Light Treads Treads Light Treads Wheel Compact Wheel Utility Small Storage Unit Storage Small Storage Unit Weapon Light Assault Rifle Energy Gun Medium Laser Ballistic Gun Light Assault Rifle Build | -11 -10 -9 -9 ------- Run | Scr Mat Mat Min Slots Evolved 2 | . . 2 . Power . | . . . . Propulsion 1 | . . 1 . Utility 1 | . . 1 . Weapon . | . . . . Parts Attached 18 | 7 1 10 . Power 1 | 1 . . . Engine 1 | 1 . . . Core . | . . . . Reactor . | . . . . Propulsion 4 | 2 . 2 . Treads 2 | . . 2 . Leg . | . . . . Wheel 2 | 2 . . . Hover . | . . . . Flight . | . . . . Utility 5 | 2 . 3 . Device . | . . . . Storage 5 | 2 . 3 . Processor . | . . . . Hackware . | . . . . Protection . | . . . . Artifact . | . . . . Weapon 8 | 2 1 5 . Energy Gun 3 | 1 . 2 . Energy Cannon . | . . . . Ballistic Gun 5 | 1 1 3 . Ballistic Cannon . | . . . . Launcher . | . . . . Special Weapon . | . . . . Impact Weapon . | . . . . Slashing Weapon . | . . . . Piercing Weapon . | . . . . Special Melee Weapon . | . . . . Unidentified Prototypes 1 | . . 1 . Parts Lost 8 | . 3 5 . Power 1 | . . 1 . Propulsion 3 | . 2 1 . Utility . | . . . . Weapon 4 | . 1 3 . Highest Loss Streak 4 | . 3 4 . Average Slot Usage (%) 76 | . 97 70 . Engine 10 | . 14 9 . Treads 12 | . . 19 . Wheel 8 | . 25 . . Storage 23 | . 28 22 . Energy Gun 6 | . 14 2 . Ballistic Gun 15 | . 14 17 . Naked Turns 34 | . . 21 13 Heaviest Build 77 | 16 16 77 . Greatest Support 40 | 26 26 40 3 Greatest Overweight (x) 5 | 3 5 3 . Average Overweight (x) . | . . . . Largest Inventory Capacity 22 | 8 8 22 4 Average Capacity 8 | 7 8 9 4 Most Carried 9 | 4 7 9 4 Average Carried 4 | 3 5 5 4 Final Capacity 8 | 8 8 4 4 Final Carried 7 | 4 7 4 4 Class Distribution -------------------- 93% | Mutant 6% | Hauler-Mutant Dominant Class ---------------- Mutant | -10/Materials Mutant | -9/Materials Mutant | -9/Mines Resources | -11 -10 -9 -9 ----------- Run | Scr Mat Mat Min Matter Collected 473 | 288 3 182 . Remotely . | . . . . Salvage Created 467 | 224 11 232 . Parts 23 | 17 1 5 . Haulers Intercepted . | . . . . Recyclers Shooed 1 | . . 1 . Parts Field Recycled . | . . . . Retrieved Matter . | . . . . Parts Self-Destructed . | . . . . Prevented . | . . . . Kills | -11 -10 -9 -9 ------- Run | Scr Mat Mat Min Combat Hostiles Destroyed 3 | . . 3 . Guns 3 | . . 3 . Classes Destroyed 4 | 2 1 1 . Tunneler 5 | 5 . . . Recycler 2 | 1 . 1 . Watcher 1 | . 1 . . Grunt 3 | . . 3 . Best Kill Streak 5 | 5 1 2 . Combat Bots Only 2 | . . 2 . Max Kills in Single Turn 1 | 1 1 1 . Gunslinging . | . . . . Exploded . | . . . . Melee . | . . . . Uniques/NPCs Destroyed . | . . . . Combat | -11 -10 -9 -9 -------- Run | Scr Mat Mat Min Damage Taken 1229 | . 216 1003 10 Core 414 | . 11 393 10 Absorbed by Shields . | . . . . Core Remaining (%) 97 | 100 95 . . Volleys Fired 52 | 18 3 31 . Largest 2 | 2 2 2 . Hottest 70 | 70 70 60 . Shots Fired 96 | 36 6 54 . Gun 96 | 36 6 54 . Cannon . | . . . . Launcher . | . . . . Special . | . . . . Kinetic 66 | 18 3 45 . Thermal 21 | 18 3 . . Explosive . | . . . . Electromagnetic 9 | . . 9 . Robot Hit Streak 12 | 8 4 12 . Robot Miss Streak 3 | 3 2 3 . Penetration Max . | . . . . Secondary Targets . | . . . . Shots Hit Robots 62 | 22 4 36 . Core Hits 22 | 8 2 12 . Critical Hits . | . . . . Critical Kills . | . . . . Critical Parts Destroyed . | . . . . Melee Attacks . | . . . . Impact . | . . . . Slashing . | . . . . Piercing . | . . . . Sneak Attacks . | . . . . Combat Hostiles . | . . . . Follow-up Attacks . | . . . . Damage Inflicted 688 | 257 43 388 . Guns 685 | 257 43 385 . Cannons . | . . . . Explosions . | . . . . Melee . | . . . . Ramming 3 | . . 3 . Kinetic 413 | 80 18 315 . Thermal 202 | 177 25 . . Explosive . | . . . . Electromagnetic 70 | . . 70 . Impact . | . . . . Slashing . | . . . . Piercing . | . . . . Highest Corruption . | . . . . Average Corruption . | . . . . Corruption Purged . | . . . . Overload Shots . | . . . . Overflow Damage . | . . . . Projectiles . | . . . . Explosions . | . . . . Melee . | . . . . Knockbacks . | . . . . Impact . | . . . . Kinetic . | . . . . Secondary . | . . . . Self-Inflicted Damage 1 | . . 1 . Shots . | . . . . Rammed 2 | . . 2 . Targets Rammed 2 | . . 2 . Kicked . | . . . . Crushed . | . . . . Highest Temperature 240 | 240 36 6 . Average Temperature 98 | 123 20 3 . Received Heat Transfer 417 | . 120 297 . Effects 1 | 1 . . . Energy Bleed 1 | 1 . . . Siege Activations . | . . . . Robots Corrupted . | . . . . Combat Hostiles . | . . . . Parts Fried . | . . . . Impact Corruptions . | . . . . Robots Melted . | . . . . Combat Hostiles . | . . . . Parts Melted . | . . . . Heat Transferred 592 | 518 74 . . Parts Sabotaged . | . . . . Parts Stolen . | . . . . Parts Stripped . | . . . . Power Chain Reactions . | . . . . Missiles Intercepted . | . . . . Alert | -11 -10 -9 -9 ------- Run | Scr Mat Mat Min Peak Influence 138 | 30 86 138 60 Average Influence 58 | 12 53 80 58 Maximum Alert Level . | . . . . Low Security (%) 100 | 100 100 100 100 Level 1 . | . . . . Level 2 . | . . . . Level 3 . | . . . . Level 4 . | . . . . Level 5 . | . . . . High Security . | . . . . Max Security . | . . . . Squads Dispatched 5 | . 1 4 . Investigation 2 | . 1 1 . Extermination . | . . . . Reinforcement 3 | . . 3 . Assault . | . . . . Garrison . | . . . . Intercept . | . . . . Construction Impeded . | . . . . Haulers Reinforced . | . . . . Stealth | -11 -10 -9 -9 --------- Run | Scr Mat Mat Min Distress Signals 4 | . . 4 . Communications Jammed . | . . . . Distress Signals . | . . . . Times Spotted 40 | . 9 25 6 Peak Tracking Total 18 | . 6 18 2 Tactical Retreats 2 | . 1 1 . Traps | -11 -10 -9 -9 ------- Run | Scr Mat Mat Min Traps Triggered 2 | . 1 1 . Indirectly . | . . . . Trap Hack Attempts . | . . . . Triggered . | . . . . Disarmed . | . . . . Reprogrammed . | . . . . Reused . | . . . . Traps Extracted . | . . . . Installed . | . . . . Triggered . | . . . . Machines | -11 -10 -9 -9 ---------- Run | Scr Mat Mat Min Machines Disabled . | . . . . Max in Single Turn . | . . . . Machines Sabotaged . | . . . . Garrisons Compromised . | . . . . Overloaded Fab Kills . | . . . . Fab Network Shutdowns . | . . . . Hacking | -11 -10 -9 -9 --------- Run | Scr Mat Mat Min Machines Accessed 1 | . 1 . . Terminals . | . . . . Fabricators . | . . . . Repair Stations . | . . . . Recycling Units 1 | . 1 . . Scanalyzers . | . . . . Garrison Access . | . . . . Total Hacks 2 | . 2 . . Successful 2 | . 2 . . Failed . | . . . . Catastrophic . | . . . . Database Lockouts . | . . . . Manual 1 | . 1 . . Terminals . | . . . . Fabricators . | . . . . Repair Stations . | . . . . Recycling Units 2 | . 2 . . Scanalyzers . | . . . . Garrison Access . | . . . . Terminal Hacks . | . . . . Fabricator Hacks . | . . . . Repair Station Hacks . | . . . . Recycling Unit Hacks 1 | . 1 . . Retrieve Components 1 | . 1 . . Scanalyzer . | . . . . Garrison Access Hacks . | . . . . Unauthorized Hacks 2 | . 2 . . Terminals . | . . . . Fabricators . | . . . . Repair Stations . | . . . . Recycling Units 1 | . 1 . . Tunnel 1 | . 1 . . Scanalyzers . | . . . . Garrison Access . | . . . . Data Cores Recovered . | . . . . Used . | . . . . Hacking Detections . | . . . . Full Trace Events . | . . . . Feedback Events . | . . . . Feedback Blocked . | . . . . Robot Schematics Acquired . | . . . . Robots Built . | . . . . Matter . | . . . . Time . | . . . . Total Robot Build Rating . | . . . . Part Schematics Acquired . | . . . . Parts Built . | . . . . Matter . | . . . . Time . | . . . . Total Part Build Rating . | . . . . Parts Repaired . | . . . . Time . | . . . . Parts Recycled . | . . . . Recycled Matter . | . . . . Retrieved Matter . | . . . . Retrieved Components 3 | . 3 . . Parts Scanalyzed . | . . . . Part Schematics Acquired . | . . . . Parts Damaged . | . . . . Bothacking | -11 -10 -9 -9 ------------ Run | Scr Mat Mat Min Used RIF Installer . | . . . . Robots Hacked . | . . . . Non-combat . | . . . . Combat . | . . . . Robot Hacks Applied . | . . . . Relay Couplers Released . | . . . . Robots Rewired . | . . . . Allies Hacked . | . . . . Hacks Repelled . | . . . . Allies | -11 -10 -9 -9 -------- Run | Scr Mat Mat Min Total Allies . | . . . . Largest Group . | . . . . Highest-Rated Group . | . . . . Highest-Rated Ally . | . . . . Total Orders . | . . . . Ally Attacks . | . . . . Total Damage . | . . . . Kills . | . . . . Allies Corrupted . | . . . . Allies Melted . | . . . . Intel | -11 -10 -9 -9 ------- Run | Scr Mat Mat Min Robot Analysis Total . | . . . . Derelict Logs Recovered . | . . . . Drone Launches . | . . . . Drone Recoveries . | . . . . Exploration | -11 -10 -9 -9 ------------- Run | Scr Mat Mat Min Turns Passed 570 | 117 145 295 13 Spaces Moved 362 | 52 141 144 25 Core 76 | 12 3 36 25 Treads 108 | . . 108 . Legs . | . . . . Wheels 178 | 40 138 . . Hover . | . . . . Flight . | . . . . Fastest Speed 50 | 50 90 50 50 Average Speed 108 | 100 94 133 50 Slowest Speed 300 | 200 300 220 50 Overloaded Moves . | . . . . Propulsion Burnouts . | . . . . Robots Hopped . | . . . . Cave-ins Triggered . | . . . . Exploration Rate (%) 18 | 3 35 24 11 Regions Visited 3 Branch Regions 1 Pre-discovered Areas 1 | . 1 . . Known Exits Taken . | . . . . Unknown Exits Taken 3 | 1 1 1 . Scrap Searched . | . . . . Spaces Dug . | . . . . Terrain Destroyed . | . . . . Melee . | . . . . Projectile . | . . . . AOE . | . . . . Actions | -11 -10 -9 -9 --------- Run | Scr Mat Mat Min Total 448 | 80 148 195 25 Wait 1 | . 1 . . Move 359 | 51 140 143 25 Hop . | . . . . Pick Up 10 | 4 3 3 . Fast Attach 10 | 7 1 2 . Attach 5 | . . 5 . Detach 3 | . . 3 . Swap 3 | . . 3 . Drop 3 | . . 3 . Fire 52 | 18 3 31 . Melee . | . . . . Ram 2 | . . 2 . Kick . | . . . . Crush . | . . . . Escape Stasis . | . . . . Rewire . | . . . . Trap . | . . . . Miscellaneous . | . . . . Route ------- -11/Scrapyard -10/Materials -9/Materials -9/Mines History --------- Turn | Location | Event 9 | -11/Scrapyard | Discovered new exit (range 15) 118 | -11/Scrapyard | Entered Materials 256 | -10/Materials | Discovered new exit (range 4) 263 | -10/Materials | Entered another Materials area 263 | -9/Materials | Evolved 2 slots: Propulsion x1, Utility x1 291 | -9/Materials | Lost 3 parts (2n1w) 304 | -9/Materials | Build established: Mutant 539 | -9/Materials | Core integrity fell below 50% 546 | -9/Materials | Discovered new exit (range 8) 552 | -9/Materials | Core integrity fell below 20% 558 | -9/Materials | Entered Mines 566 | -9/Mines | Lost 4 parts (1p1n2w) 571 | -9/Mines | Destroyed by S-10 Pest with Light Assault Rifle Last Messages --------------- 00537_ Dropped Hcp. Storage Unit. 00537_ Acquired 44 matter. 00538_ Slammed into L-31 Rogue. 00539_ W-16 Scout sends out distress signal. 00546_ EXIT=FOUND 00547_ O-16 Technician: "IFF HANDSHAKE FAILED. SECURING TERMINAL." 00549_ Dropped Sml. Storage Unit. 00549_ R-06 Scavenger collects Sml. Storage Unit. 00550_ Slammed into A-02 Transporter. 00550_ Destabilizing: Core damaged (-4). 00550_ ALERT: Hostiles spotted, dispatching reinforcements to Terminal M009. 00551_ Acquired Mni. Grenade Launcher. 00553_ U-05 Engineer destroyed. 00555_ ALERT: Hostiles spotted, dispatching reinforcements to Terminal M008. 00558_ R-06 Scavenger collects Structural Scanner. LOCATION=UNKNOWN GOAL=ESCAPE Something is scanning the area. Map ----- +----------------------------------------------------+ | ??????????????????????????????????????????? | | ??????????????????????????????????????????? | | ??????????????????????????????????????????? | | ??????????????????????????????????????????? | | ??????????????????????????????????????????? | | ??????????????????????????????????????????? | | ??????????????????????????????????????????? | | ??????????????????????????????????????????? | | ??????????????????????????????????????????? | | ??????????????????????????????????????????? | | ??????????????????????????????????????????? | | ??????????????????????????????????????????? | | ??????????????????????????????????????????? | | ??????????????????????????????????????????? | | ??????????????????????????????????????????? | | ??????????????????????????????????????????? | | ??????????????????????????????????????????? | | ??????????????????????????????????????????? | | ????????????????????????????? #???????????? | | ????????????????????????????? #???????????? | | ???????????????????????????## #???????????? | | ?????????????????????????### ####????????? | | ????????????????????????## ##???????? | | ???????????????????????## """" #???????? | | ??????????# ##### """" #???????? | | ???????????# @ """" #????????? | | ????????????# #????????? | | ?????????????# ###### # #????????? | | ?????????????# ?????????# ## #????????? | | ????????????????????????# ### #????????? | | ????????????????????????# #?### #####????? | | ????????????????????????#s #???# #????? | | ????????????????????????ss #???##### #????? | | ???????????????????????? s ???????# #????? | | ???????????????????????? ???????# #????? | | ???????????????????????? ???????# #????? | | ???????????????????????## ???????# #????? | | ????????????????????????## ???????# #????? | | ??????????????????????????# ###???# #????? | | ???????????????????????????### ##?# #????? | | ???????????????????????????## ### #????? | | ???????????????????????????# ## #????? | | ???????????????????????????# #????? | | ???????????????????????????# #####????? | | ???????????????????????????## ###????????? | | ????????????????????????????###???????????? | | ??????????????????????????????????????????? | | ??????????????????????????????????????????? | | ??????????????????????????????????????????? | | ??????????????????????????????????????????? | +----------------------------------------------------+ Best States ------------- Heat Dissipation 28 Energy Generation 10 Energy Capacity 250 Matter Stores 300 Matter Capacity 300 Sight Range 16 Terrain Scan Density 10 Evasion (%) 50 Recoil Reduction 2 Item Schematics ----------------- None Robot Schematics ------------------ None Fabricated ------------ Nothing Alien Tech Used ----------------- None Achievements -------------- None Challenges ------------ None Game ------ Seed DamperFieldLoader Manual? 0 Play Time 00:04:16 Cumulative 268.6 hours Start 2019.11.14 @ 22:17:34 End 2019.11.14 @ 22:22:06 Sessions 1 Manual Loads 0 Difficulty Rogue Special Mode None Game No. 214 Rogue 214 Adventurer 0 Explorer 0 Win Type - Total 3 Types 3/0/0/0/0/0/0 Lore% 74 Gallery% 78 Achievement% 55 Wizard Run 0 Options --------- ASCII 0 Keyboard 0 Movement Mouse Keybinds 1 Fullscreen 2 Font 24/Smallcaps Map View 76x50 Tactical HUD 1 Map Filters NONE Filters NONE Steam 1 RUN: 685fb7df-1894-4810-bb37-4e42563c3928